bitfinex-derivatives/quotes_BTCF0:USTF0_20250805
["timestamp","ask_amount","ask_price","bid_price","bid_amount"]
[1754435628610,1.64688754,114100.0,114090.0,1.92249832]
[1754435629410,1.28608754,114100.0,114090.0,1.92249832]
[1754435631505,1.28608754,114100.0,114090.0,2.07936283]
[1754435637112,1.28608754,114100.0,114090.0,1.92249832]
[1754435640117,1.64688754,114100.0,114090.0,2.07934073]
[1754435642921,1.64688754,114100.0,114090.0,1.39091657]
[1754435643124,1.82218354,114100.0,114090.0,1.49091657]
[1754435643321,1.82218354,114100.0,114090.0,1.33407416]
[1754435643823,1.64688754,114100.0,114090.0,1.33407416]
[1754435644224,1.64688754,114100.0,114090.0,0.70196]
[1754435645923,1.64688754,114100.0,114090.0,0.71083386]
[1754435646126,1.23605202,114100.0,114090.0,0.71083386]
[1754435649021,1.64688754,114100.0,114090.0,0.71083386]
[1754435650628,1.64688754,114100.0,114090.0,0.70196]
[1754435653524,1.23605202,114100.0,114090.0,0.70196]
[1754435653725,1.23605202,114100.0,114090.0,0.71059449]
[1754435653926,1.64688754,114100.0,114090.0,0.71059449]
[1754435656136,1.23605202,114100.0,114090.0,0.71059449]
[1754435656331,1.64688754,114100.0,114090.0,0.71059449]
[1754435660440,1.23605202,114100.0,114090.0,0.71059449]
[1754435661234,1.23605202,114100.0,114090.0,0.88590219]
[1754435661434,1.23605202,114100.0,114090.0,1.12143001]
[1754435661634,1.23605202,114100.0,114090.0,0.71059449]
[1754435662939,1.23505202,114100.0,114090.0,0.71159449]
[1754435663839,1.23505202,114100.0,114090.0,0.71059449]
[1754435665943,0.87425202,114100.0,114090.0,0.71059449]
[1754435670046,0.87425202,114100.0,114090.0,1.29673751]
[1754435670346,0.87425202,114100.0,114090.0,1.24670199]
[1754435671143,0.87425202,114100.0,114090.0,1.07139449]
[1754435671538,0.87325202,114100.0,114090.0,0.71159449]
[1754435671843,0.87325202,114100.0,114090.0,0.86866061]
[1754435672549,0.87325202,114100.0,114090.0,0.86966061]
[1754435673549,0.87325202,114100.0,114090.0,1.23046061]
[1754435675948,0.81810202,114100.0,114090.0,1.81660383]
[1754435676148,0.74589202,114100.0,114090.0,1.81660383]
[1754435676649,0.74589202,114100.0,114090.0,1.65953771]
[1754435677249,0.63166202,114100.0,114090.0,1.86352716]
[1754435678047,0.2208265,114100.0,114090.0,1.86352716]
[1754435678252,0.63166202,114100.0,114090.0,1.86352716]
[1754435679452,0.2208265,114100.0,114090.0,1.86352716]
[1754435679751,0.63166202,114100.0,114090.0,1.86352716]
[1754435680351,0.2208265,114100.0,114090.0,1.86352716]
[1754435680844,0.63166202,114100.0,114090.0,1.86352716]
[1754435681445,0.86567202,114100.0,114090.0,1.68821946]
[1754435682155,0.86567202,114100.0,114090.0,1.48423001]
[1754435683848,0.4548365,114100.0,114090.0,1.48423001]
[1754435684055,0.86567202,114100.0,114090.0,1.48423001]
[1754435684257,0.86567202,114100.0,114090.0,1.64110898]
[1754435685958,0.86567202,114100.0,114090.0,1.48423001]
[1754435688062,0.4548365,114100.0,114090.0,1.48423001]
[1754435688361,0.86567202,114100.0,114090.0,1.48423001]
[1754435688862,0.86567202,114100.0,114090.0,1.64112907]
[1754435689361,0.86567202,114100.0,114090.0,1.81643637]
[1754435690467,0.86567202,114100.0,114090.0,1.65953731]
[1754435690765,0.86567202,114100.0,114090.0,1.86352676]
[1754435691166,0.86553202,114100.0,114090.0,1.86352676]
[1754435691970,0.86553202,114100.0,114090.0,1.65953731]
[1754435692668,0.4546965,114100.0,114090.0,1.65953731]
[1754435692862,0.86553202,114100.0,114090.0,1.65953731]
[1754435693768,0.86553202,114100.0,114090.0,1.81645032]
[1754435694674,0.4546965,114100.0,114090.0,1.81645032]
[1754435694864,0.86553202,114100.0,114090.0,1.81645032]
[1754435695670,0.4546965,114100.0,114090.0,1.81645032]
[1754435696165,0.4546965,114100.0,114090.0,1.65953731]
[1754435699476,0.4546965,114100.0,114090.0,1.8164976]
[1754435701176,0.4546965,114100.0,114090.0,1.65953731]
[1754435701675,0.4546965,114100.0,114090.0,1.86352676]
[1754435701970,0.2206865,114100.0,114090.0,2.27436228]
[1754435702470,0.2206865,114100.0,114090.0,1.86352676]
[1754435703268,0.2206865,114100.0,114090.0,2.27436228]
[1754435703566,0.4042665,114100.0,114090.0,2.27736228]
[1754435703768,0.4486165,114100.0,114090.0,1.86652676]
[1754435704369,0.4486165,114100.0,114090.0,1.86452676]
[1754435704572,0.4486165,114100.0,114090.0,3.07816676]
[1754435705379,0.4486165,114100.0,114090.0,2.87417731]
[1754435707379,0.4486165,114100.0,114090.0,2.46334179]
[1754435707679,0.85945202,114100.0,114090.0,2.87417731]
[1754435708078,0.85945202,114100.0,114090.0,2.51337731]
[1754435708272,0.85945202,114100.0,114090.0,2.82414179]
[1754435708467,0.85945202,114100.0,114090.0,3.23497731]
[1754435709675,0.85945202,114100.0,114090.0,3.23197731]
[1754435709874,0.85945202,114100.0,114090.0,3.23297731]
[1754435710182,0.85945202,114100.0,114090.0,2.82214179]
[1754435710383,0.85945202,114100.0,114090.0,3.23297731]
[1754435711184,0.85945202,114100.0,114090.0,2.51137731]
[1754435711374,0.85945202,114100.0,114090.0,3.23297731]
[1754435711570,0.4486165,114100.0,114090.0,3.23297731]
[1754435715884,0.85945202,114100.0,114090.0,3.23297731]
[1754435717483,0.4486165,114100.0,114090.0,3.23297731]
[1754435719078,0.85945202,114100.0,114090.0,3.23297731]
[1754435719471,0.4486165,114100.0,114090.0,3.23297731]
[1754435720173,0.85945202,114100.0,114090.0,3.23297731]
[1754435720377,0.4486165,114100.0,114090.0,3.23297731]
[1754435720577,0.4486165,114100.0,114090.0,3.64381283]
[1754435720773,0.4486165,114100.0,114090.0,3.23297731]
[1754435721284,0.2206865,114100.0,114090.0,3.64381283]
[1754435721484,0.2652888,114110.0,114090.0,3.80422289]
[1754435721691,0.3091092,114110.0,114100.0,1.47333972]
[1754435722176,0.2652888,114110.0,114100.0,1.47333972]
[1754435722381,0.04618,114110.0,114100.0,1.47333972]
[1754435722584,0.1752734,114120.0,114100.0,1.54277463]
[1754435722784,0.2219434,114120.0,114110.0,1.54803232]
[1754435723284,0.2219434,114120.0,114110.0,1.70511843]
[1754435724082,0.2219434,114120.0,114110.0,1.70711843]
[1754435724487,0.2219434,114120.0,114110.0,1.53184163]
[1754435725296,0.63277892,114120.0,114110.0,1.53284163]
[1754435725496,0.85886892,114120.0,114110.0,1.53284163]
[1754435729395,0.4480334,114120.0,114110.0,1.12200611]
[1754435729594,0.85886892,114120.0,114110.0,1.53284163]
[1754435730698,0.85886892,114120.0,114110.0,1.37575552]
[1754435731501,0.4480334,114120.0,114110.0,1.53258405]
[1754435731703,0.85886892,114120.0,114110.0,1.53258405]
[1754435732101,0.85886892,114120.0,114110.0,1.37575552]
[1754435732302,0.85886892,114120.0,114110.0,1.53256855]
[1754435733199,0.4480334,114120.0,114110.0,1.12173303]
[1754435733499,0.85886892,114120.0,114110.0,1.53256855]
[1754435734000,0.4480334,114120.0,114110.0,1.53256855]
[1754435734194,0.85886892,114120.0,114110.0,1.53256855]
[1754435735003,0.4480334,114120.0,114110.0,1.53256855]
[1754435735301,0.85886892,114120.0,114110.0,1.53256855]
[1754435735490,0.85886892,114120.0,114110.0,1.37575552]
[1754435735694,0.85886892,114120.0,114110.0,1.53252839]
[1754435735891,0.85886892,114120.0,114110.0,1.12169287]
[1754435736093,0.85886892,114120.0,114110.0,1.53252839]
[1754435737709,0.85886892,114120.0,114110.0,0.52057287]
[1754435737915,1.26970444,114120.0,114110.0,1.12153287]
[1754435738210,1.26970444,114120.0,114110.0,0.96476]
[1754435738514,0.2219434,114120.0,114110.0,1.37559552]
[1754435738715,0.2219434,114120.0,114110.0,1.50487636]
[1754435739208,0.2219434,114120.0,114110.0,1.50387636]
[1754435740111,0.2219434,114120.0,114110.0,1.32859956]
[1754435741113,0.2219434,114120.0,114110.0,1.32959956]
[1754435742114,0.2219434,114120.0,114110.0,1.50487636]
[1754435742503,0.2219434,114120.0,114110.0,1.50287636]
[1754435743008,0.2219434,114120.0,114110.0,1.32759956]
[1754435743208,0.2219434,114120.0,114110.0,1.32959956]
[1754435743513,0.2219434,114120.0,114110.0,1.50487626]
[1754435744616,0.2219434,114120.0,114110.0,1.32959956]
[1754435745113,0.1752734,114120.0,114110.0,1.50487626]
[1754435745312,0.2219434,114120.0,114110.0,1.50487626]
[1754435748219,0.04667,114120.0,114110.0,1.50487626]
[1754435748518,0.4232001,114130.0,114120.0,0.1005228]
[1754435748519,0.221916,114130.0,114120.0,0.1005228]
[1754435748716,0.221916,114130.0,114120.0,0.98302749]
[1754435749220,0.372336,114130.0,114120.0,0.98302749]
[1754435749418,0.402436,114130.0,114120.0,0.82616236]
[1754435750118,0.448006,114130.0,114120.0,0.72563956]
[1754435750506,0.448006,114130.0,114120.0,0.90090096]
[1754435751721,0.448006,114130.0,114120.0,0.97096276]
[1754435752013,0.221916,114130.0,114120.0,0.97196276]
[1754435752219,0.221916,114130.0,114120.0,0.97396276]
[1754435753320,0.221916,114130.0,114120.0,1.17789475]
[1754435753818,0.3066712,114140.0,114120.0,1.22170905]
[1754435754019,0.3535112,114140.0,114130.0,1.07651956]
[1754435754217,0.2867421,114140.0,114130.0,1.4085666]
[1754435754422,0.4491521,114140.0,114130.0,1.2333206]
[1754435754623,0.4491521,114140.0,114130.0,0.86848104]
[1754435754822,0.4491521,114140.0,114130.0,1.2333206]
[1754435755114,0.2867421,114140.0,114130.0,1.25176566]
[1754435755322,0.4491521,114140.0,114130.0,0.86844726]
[1754435755718,0.4491521,114140.0,114130.0,1.23328682]
[1754435755916,0.4491521,114140.0,114130.0,0.86844726]
[1754435756122,0.4491521,114140.0,114130.0,0.71168]
[1754435759022,0.4491521,114140.0,114130.0,1.07751956]
[1754435759723,0.4491521,114140.0,114130.0,1.07951956]
[1754435760325,0.4491521,114140.0,114130.0,2.29075956]
[1754435761118,0.4491521,114140.0,114130.0,1.92592]
[1754435764219,0.81399166,114140.0,114130.0,1.41817199]
[1754435764420,0.81399166,114140.0,114130.0,2.02309199]
[1754435764720,1.17479166,114140.0,114130.0,2.02305199]
[1754435765220,1.17479166,114140.0,114130.0,1.41817199]
[1754435765420,0.81399166,114140.0,114130.0,1.81916]
[1754435765621,1.17479166,114140.0,114130.0,1.21424]
[1754435766023,1.17479166,114140.0,114130.0,1.81904]
[1754435766227,1.17479166,114140.0,114130.0,1.81604]
[1754435766726,1.17479166,114140.0,114130.0,1.97281633]
[1754435766931,1.17579166,114140.0,114130.0,1.36801633]
[1754435767119,1.17679166,114140.0,114130.0,1.97281633]
[1754435767320,1.17679166,114140.0,114130.0,1.36801633]
[1754435767521,1.47679166,114140.0,114130.0,1.21124]
[1754435767716,1.47679166,114140.0,114130.0,1.1139356]
[1754435767924,1.47679166,114140.0,114130.0,1.6709656]
[1754435767925,1.1119521,114140.0,114130.0,1.6709656]
[1754435768126,1.47679166,114140.0,114130.0,1.0661256]
[1754435768326,1.47679166,114140.0,114130.0,1.6709656]
[1754435769021,1.17679166,114140.0,114130.0,1.82774193]
[1754435772328,1.65202366,114140.0,114130.0,1.09387483]
[1754435772533,1.65202366,114140.0,114130.0,1.1594334]
[1754435772729,1.65202366,114140.0,114130.0,1.0260886]
[1754435772936,0.2864861,114130.0,114120.0,0.0700618]
[1754435773233,1.17479566,114130.0,114120.0,0.60444]
[1754435773633,0.4491714,114120.0,114110.0,0.22325]
[1754435773933,0.4491714,114120.0,114110.0,0.82773]
[1754435773934,1.17481096,114120.0,114110.0,0.82773]
[1754435774432,1.17481096,114120.0,114110.0,0.88038]
[1754435775120,1.17481096,114120.0,114110.0,1.03729134]
[1754435775935,1.17481096,114120.0,114110.0,0.88038]
[1754435776123,1.12797096,114120.0,114110.0,0.88038]
[1754435776319,0.7631314,114120.0,114110.0,0.88038]
[1754435777127,1.17481096,114120.0,114110.0,0.88038]
[1754435777431,1.17481096,114120.0,114110.0,0.88238]
[1754435777631,1.17481096,114120.0,114110.0,0.88222]
[1754435778324,0.8099714,114120.0,114110.0,0.88222]
[1754435778524,1.17481096,114120.0,114110.0,0.88222]
[1754435779223,1.17481096,114120.0,114110.0,1.03913134]
[1754435779425,0.7631314,114120.0,114110.0,1.03913134]
[1754435780234,0.4023314,114120.0,114110.0,1.03913134]
[1754435780628,0.7631314,114120.0,114110.0,1.03913134]
[1754435781035,0.8099714,114120.0,114110.0,0.43481134]
[1754435781238,0.8099714,114120.0,114110.0,1.03925134]
[1754435781739,0.4491714,114120.0,114110.0,1.03925134]
[1754435782536,0.4023314,114120.0,114110.0,1.03925134]
[1754435783138,0.4023314,114120.0,114110.0,0.88234]
[1754435783338,0.76717096,114120.0,114110.0,0.88234]
[1754435783637,1.17496096,114120.0,114110.0,0.88234]
[1754435784137,0.81416096,114120.0,114110.0,0.88234]
[1754435784333,1.17496096,114120.0,114110.0,0.88234]
[1754435785539,0.81416096,114120.0,114110.0,0.88234]
[1754435785836,1.17496096,114120.0,114110.0,0.88234]
[1754435787740,1.14776096,114120.0,114110.0,0.88234]
[1754435788037,1.19475096,114120.0,114110.0,0.88234]
[1754435791128,1.14776096,114120.0,114110.0,0.88234]
[1754435791335,0.93537096,114120.0,114110.0,0.88234]
[1754435791536,1.14776096,114120.0,114110.0,0.88234]
[1754435792032,1.14776096,114120.0,114110.0,1.03925134]
[1754435792236,1.19475096,114120.0,114110.0,1.03925134]
[1754435793541,1.14776096,114120.0,114110.0,1.03925134]
[1754435794339,1.19475096,114120.0,114110.0,1.03925134]
[1754435795343,1.19475096,114120.0,114110.0,0.88234]
[1754435795937,0.5360614,114120.0,114110.0,1.0576167]
[1754435796139,0.1752614,114120.0,114110.0,1.78325626]
[1754435796836,0.1752614,114120.0,114110.0,1.57540233]
[1754435797539,0.1752614,114120.0,114110.0,1.4184167]
[1754435797738,0.1752614,114120.0,114110.0,1.57542093]
[1754435799243,0.1752614,114120.0,114110.0,1.4184167]
[1754435799438,0.1752614,114120.0,114110.0,1.24314]
[1754435799838,0.3404314,114120.0,114110.0,1.24314]
[1754435800638,0.1752614,114120.0,114110.0,1.4184168]
[1754435800834,0.1752614,114120.0,114110.0,1.82707466]
[1754435801038,0.1752614,114120.0,114110.0,1.87089296]
[1754435801239,0.1752614,114120.0,114110.0,1.5060534]
[1754435801434,0.3066749,114140.0,114130.0,0.4647061]
[1754435801644,0.2628638,114140.0,114130.0,1.0682661]
[1754435802340,0.2628638,114140.0,114130.0,1.22530545]
[1754435802541,0.2648638,114140.0,114130.0,1.22530545]
[1754435803036,0.2993338,114140.0,114130.0,1.05005935]
[1754435803237,0.92355336,114140.0,114130.0,1.05005935]
[1754435803740,0.92455336,114140.0,114130.0,1.05005935]
[1754435804832,1.28435336,114140.0,114130.0,0.84025]
[1754435805033,1.28235336,114140.0,114130.0,0.28946]
[1754435805239,1.28335336,114140.0,114130.0,0.44636194]
[1754435805548,1.28335336,114140.0,114130.0,0.92541194]
[1754435805750,1.28235336,114140.0,114130.0,0.88919194]
[1754435806441,1.28335336,114140.0,114130.0,0.88919194]
[1754435807052,1.28335336,114140.0,114130.0,0.76066194]
[1754435807541,1.28335336,114140.0,114130.0,0.60376]
[1754435808645,1.969096,114130.0,114120.0,0.11733791]
[1754435808944,2.69473556,114130.0,114120.0,0.72117791]
[1754435809143,2.329896,114130.0,114120.0,0.72117791]
[1754435809338,2.69473556,114130.0,114120.0,0.72117791]
[1754435809539,2.69473556,114130.0,114120.0,0.82541791]
[1754435809940,2.69473556,114130.0,114120.0,0.82741791]
[1754435810849,2.69473556,114130.0,114120.0,0.67674791]
[1754435811350,2.69473556,114130.0,114120.0,0.72317791]
[1754435811541,2.69473556,114130.0,114120.0,0.88007985]
[1754435812843,2.69473556,114130.0,114120.0,0.83364985]
[1754435814855,2.69473556,114130.0,114120.0,0.88109985]
[1754435815542,2.69573556,114130.0,114120.0,0.72319791]
[1754435816045,2.69573556,114130.0,114120.0,0.72219791]
[1754435816046,2.330896,114130.0,114120.0,0.72219791]
[1754435816256,2.69673556,114130.0,114120.0,0.72219791]
[1754435816451,2.69673556,114130.0,114120.0,0.79767791]
[1754435817847,2.33593556,114130.0,114120.0,0.79767791]
[1754435818050,3.05753556,114130.0,114120.0,0.79767791]
[1754435818252,1.55753556,114130.0,114120.0,0.82959791]
[1754435818951,1.55753556,114130.0,114120.0,0.67474791]
[1754435819257,1.55753556,114130.0,114120.0,0.72219791]
[1754435819458,1.92237512,114130.0,114120.0,0.67526791]
[1754435819757,1.55753556,114130.0,114120.0,0.67526791]
[1754435820648,2.39762313,114130.0,114120.0,0.04470171]
[1754435820861,0.2906015,114120.0,114110.0,0.15690194]
[1754435821156,1.55746062,114120.0,114110.0,0.80863194]
[1754435821457,1.55746062,114120.0,114110.0,0.75913]
[1754435821655,1.55746062,114120.0,114110.0,0.6490497]
[1754435821860,1.55746062,114120.0,114110.0,0.60428]
[1754435822756,0.2906168,114110.0,114100.0,0.24154]
[1754435822965,1.19263636,114110.0,114100.0,0.84582]
[1754435823754,1.19263636,114110.0,114100.0,0.89327]
[1754435824349,0.8277968,114110.0,114100.0,0.28899]
[1754435824549,1.19263636,114110.0,114100.0,0.89319]
[1754435827356,1.19263636,114110.0,114100.0,0.71752]
[1754435828259,1.19263636,114110.0,114100.0,0.793]
[1754435828766,1.19263636,114110.0,114100.0,0.84045]
[1754435829357,0.4670122,114100.0,114090.0,0.45452643]
[1754435829560,1.19265176,114100.0,114090.0,1.15025194]
[1754435830066,1.19265176,114100.0,114090.0,1.15101194]
[1754435830452,1.19265176,114100.0,114090.0,0.25690194]
[1754435830670,1.19265176,114100.0,114090.0,0.86194194]
[1754435831065,1.19265176,114100.0,114090.0,0.98487194]
[1754435831765,1.19365176,114100.0,114090.0,0.98487194]
[1754435831966,1.19365176,114100.0,114090.0,0.82797]
[1754435832367,1.19465176,114100.0,114090.0,0.82797]
[1754435833056,1.19465176,114100.0,114090.0,0.90652]
[1754435833266,1.19465176,114100.0,114090.0,0.99403]
[1754435837462,1.19365176,114100.0,114090.0,0.99403]
[1754435837869,1.19265176,114100.0,114090.0,0.70504]
[1754435838168,1.19265176,114100.0,114090.0,0.99403]
[1754435838973,0.8288122,114100.0,114090.0,0.99403]
[1754435839173,0.5370922,114100.0,114090.0,1.32623944]
[1754435839369,0.5370922,114100.0,114090.0,1.691079]
[1754435839570,0.5370922,114100.0,114090.0,1.32623944]
[1754435839872,0.1762922,114100.0,114090.0,1.98703944]
[1754435840071,0.1762922,114100.0,114090.0,1.8301375]
[1754435840577,0.1772922,114100.0,114090.0,1.8301375]
[1754435840776,0.1762922,114100.0,114090.0,1.8311375]
[1754435840977,0.1762922,114100.0,114090.0,1.5311375]
[1754435841179,0.1762922,114100.0,114090.0,1.89597706]
[1754435841373,0.1752922,114100.0,114090.0,1.89597706]
[1754435841766,0.1752922,114100.0,114090.0,1.89497706]
[1754435841970,0.1752922,114100.0,114090.0,1.89797706]
[1754435842179,0.1752922,114100.0,114090.0,1.89897706]
[1754435842680,0.1752922,114100.0,114090.0,2.05583764]
[1754435843080,0.1752922,114100.0,114090.0,1.69099808]
[1754435843781,0.1752922,114100.0,114090.0,2.05583764]
[1754435844480,0.1752922,114100.0,114090.0,1.69099808]
[1754435846381,0.1752922,114100.0,114090.0,1.69123808]
[1754435846783,0.1752922,114100.0,114090.0,1.32943808]
[1754435846982,0.1752922,114100.0,114090.0,1.32743808]
[1754435847876,0.1752922,114100.0,114090.0,1.32843808]
[1754435848581,0.1752922,114100.0,114090.0,1.33043808]
[1754435848781,0.54013176,114100.0,114090.0,1.33043808]
[1754435848982,1.18560176,114100.0,114090.0,1.15525058]
[1754435849279,1.18560176,114100.0,114090.0,0.99839]
[1754435850082,1.18560176,114100.0,114090.0,1.15425058]
[1754435850285,0.1752922,114100.0,114090.0,1.32955808]
[1754435850584,0.1752922,114100.0,114090.0,1.32655808]
[1754435850881,0.1752922,114100.0,114090.0,1.32755808]
[1754435853183,0.1752922,114100.0,114090.0,1.1706975]
[1754435856989,0.6237342,114110.0,114100.0,0.4648921]
[1754435857190,0.5799117,114110.0,114100.0,0.82973166]
[1754435857483,0.3407793,114130.0,114120.0,0.4648613]
[1754435857682,0.3407793,114130.0,114120.0,1.0699413]
[1754435858286,0.2190713,114130.0,114120.0,1.0699413]
[1754435858485,0.2190713,114130.0,114120.0,1.2268747]
[1754435859292,0.2531513,114130.0,114120.0,1.2268747]
[1754435860682,0.2531513,114130.0,114120.0,1.29891154]
[1754435861093,0.2561513,114130.0,114120.0,1.29891154]
[1754435861688,0.2531513,114130.0,114120.0,1.30191154]
[1754435861988,0.2531513,114130.0,114120.0,1.14497814]
[1754435862193,0.2855813,114130.0,114120.0,0.96971684]
[1754435862495,0.82074086,114130.0,114120.0,0.96971684]
[1754435862683,0.74527086,114130.0,114120.0,0.96971684]
[1754435862885,0.86858086,114130.0,114120.0,0.96971684]
[1754435863085,1.22938086,114130.0,114120.0,0.96971684]
[1754435863296,1.22938086,114130.0,114120.0,1.12633685]
[1754435863592,1.22938086,114130.0,114120.0,1.12533685]
[1754435864295,1.22938086,114130.0,114120.0,1.12233685]
[1754435864491,1.22938086,114130.0,114120.0,1.12333685]
[1754435865388,0.86858086,114130.0,114120.0,1.12333685]
[1754435866701,0.5037413,114130.0,114120.0,1.12333685]
[1754435866885,0.86858086,114130.0,114120.0,1.12333685]
[1754435867597,0.2190713,114130.0,114120.0,1.29859825]
[1754435868088,0.2190713,114130.0,114120.0,1.14197824]
[1754435868896,0.79600086,114130.0,114120.0,0.96671684]
[1754435869195,0.86858086,114130.0,114120.0,0.96671684]
[1754435870393,0.86858086,114130.0,114120.0,1.12334199]
[1754435870599,1.22938086,114130.0,114120.0,1.12334199]
[1754435870797,1.22938086,114130.0,114120.0,1.06954199]
[1754435870997,1.22938086,114130.0,114120.0,1.12334199]
[1754435873002,0.8645413,114130.0,114120.0,1.12334199]
[1754435873197,1.22938086,114130.0,114120.0,1.12334199]
[1754435873595,1.06195086,114130.0,114120.0,1.12334199]
[1754435873804,1.00976086,114130.0,114120.0,1.12334199]
[1754435874001,0.86950086,114130.0,114120.0,1.12334199]
[1754435874397,1.23030086,114130.0,114120.0,1.12334199]
[1754435875809,0.86950086,114130.0,114120.0,1.12334199]
[1754435876104,1.23030086,114130.0,114120.0,1.12334199]
[1754435877103,0.86950086,114130.0,114120.0,1.12334199]
[1754435877304,1.23030086,114130.0,114120.0,1.12334199]
[1754435878098,0.5798713,114130.0,114120.0,1.29860339]
[1754435878303,0.2190713,114130.0,114120.0,1.29860339]
[1754435878500,0.2190713,114130.0,114120.0,1.14197824]
[1754435878998,0.2190713,114130.0,114120.0,1.29857057]
[1754435879194,0.2190713,114130.0,114120.0,1.12330917]
[1754435879400,0.86840086,114130.0,114120.0,1.12330917]
[1754435880604,0.86840086,114130.0,114120.0,0.96671684]
[1754435881807,0.5035613,114130.0,114120.0,0.96671684]
[1754435882104,0.86840086,114130.0,114120.0,0.96671684]
[1754435884799,0.5035613,114130.0,114120.0,1.14197824]
[1754435885000,0.2830213,114130.0,114120.0,1.50277824]
[1754435885404,0.2830213,114130.0,114120.0,1.14197824]
[1754435885808,0.64786086,114130.0,114120.0,0.96671684]
[1754435886106,0.86840086,114130.0,114120.0,0.96671684]
[1754435887210,1.22920086,114130.0,114120.0,1.14197824]
[1754435887406,0.5035613,114130.0,114120.0,1.14197824]
[1754435887610,0.5911645,114140.0,114130.0,0.27957]
[1754435887908,0.9519645,114140.0,114130.0,0.27957]
[1754435888505,0.9519645,114140.0,114130.0,0.454816]
[1754435888703,0.9519645,114140.0,114130.0,0.61140833]
[1754435888904,0.9519645,114140.0,114130.0,0.43616233]
[1754435889104,0.5911645,114140.0,114130.0,0.43616233]
[1754435889505,0.5911645,114140.0,114130.0,0.454816]
[1754435890007,0.5911645,114140.0,114130.0,0.27957]
[1754435891003,0.95600406,114140.0,114130.0,0.27957]
[1754435891609,0.95600406,114140.0,114130.0,0.454816]
[1754435892010,0.5911645,114140.0,114130.0,0.454816]
[1754435892312,0.95600406,114140.0,114130.0,0.454816]
[1754435892701,0.95600406,114140.0,114130.0,0.65874799]
[1754435893116,0.3747036,114140.0,114130.0,0.65874799]
[1754435893508,0.5473536,114140.0,114130.0,0.65874799]
[1754435893815,0.5473536,114140.0,114130.0,0.48350199]
[1754435894015,0.5473536,114140.0,114130.0,0.48450199]
[1754435894215,0.91219316,114140.0,114130.0,0.48450199]
[1754435898331,1.27299316,114140.0,114130.0,0.48450199]
[1754435898620,0.9081536,114140.0,114130.0,0.48450199]
[1754435898821,1.27299316,114140.0,114130.0,0.48450199]
[1754435899425,0.91219316,114140.0,114130.0,0.48450199]
[1754435899616,0.91219316,114140.0,114130.0,0.43957199]
[1754435899617,0.86448316,114140.0,114130.0,0.43957199]
[1754435899922,0.91219316,114140.0,114130.0,0.48450199]
[1754435900524,1.27299316,114140.0,114130.0,0.48450199]
[1754435901624,0.9081536,114140.0,114130.0,0.65974809]
[1754435901825,0.91219316,114140.0,114130.0,0.65974809]
[1754435902731,0.91219316,114140.0,114130.0,0.81649485]
[1754435902919,0.5473536,114140.0,114130.0,0.81649485]
[1754435903115,0.4996836,114140.0,114130.0,0.77165485]
[1754435903417,0.5450036,114140.0,114130.0,0.81932485]
[1754435903616,0.5450036,114140.0,114130.0,0.61539286]
[1754435906120,0.5450036,114140.0,114130.0,0.4586461]
[1754435907622,0.1752307,114140.0,114130.0,1.27190306]
[1754435908020,0.3525207,114140.0,114130.0,1.27190306]
[1754435908221,0.4016107,114140.0,114130.0,0.9070635]
[1754435908629,0.4016107,114140.0,114130.0,0.5462635]
[1754435909231,0.4496207,114140.0,114130.0,0.70302125]
[1754435909429,0.4496207,114140.0,114130.0,1.06382125]
[1754435909922,0.4496207,114140.0,114130.0,1.32672125]
[1754435910424,0.4496207,114140.0,114130.0,0.87830385]
[1754435915331,0.2411707,114140.0,114130.0,0.87830385]
[1754435915542,0.4016107,114140.0,114130.0,0.87830385]
[1754435915732,0.4496207,114140.0,114130.0,0.87830385]
[1754435921444,0.4496207,114140.0,114130.0,0.7215461]
[1754435923038,0.4496207,114140.0,114130.0,0.92547809]
[1754435925540,0.4496207,114140.0,114130.0,1.28627809]
[1754435925742,0.4496207,114140.0,114130.0,1.29031765]
[1754435925944,0.4496207,114140.0,114130.0,0.92547809]
[1754435926346,0.4496207,114140.0,114130.0,0.75023199]
[1754435928550,0.4496207,114140.0,114130.0,0.92547789]
[1754435928746,0.4496207,114140.0,114130.0,1.29031745]
[1754435929052,0.4496207,114140.0,114130.0,1.65111745]
[1754435930153,0.4496207,114140.0,114130.0,1.28627789]
[1754435930356,0.4496207,114140.0,114130.0,1.44718546]
[1754435934757,0.86000045,114140.0,114130.0,1.49272565]
[1754435935159,0.86000045,114140.0,114130.0,1.69665764]
[1754435935561,0.4496207,114140.0,114130.0,1.69665764]
[1754435935755,0.86000045,114140.0,114130.0,2.90785764]
[1754435935955,0.86000045,114140.0,114130.0,2.49747789]
[1754435936152,0.86000045,114140.0,114130.0,2.90785764]
[1754435937762,0.86000045,114140.0,114130.0,2.70392565]
[1754435938357,0.86000045,114140.0,114130.0,2.90800507]
[1754435939758,0.4496207,114140.0,114130.0,2.90800507]
[1754435939954,0.86000045,114140.0,114130.0,2.90800507]
[1754435940766,0.86000045,114140.0,114130.0,2.70392565]
[1754435941566,0.86000045,114140.0,114130.0,2.90799125]
[1754435942269,0.86000045,114140.0,114130.0,2.4976115]
[1754435942461,0.86000045,114140.0,114130.0,2.90799125]
[1754435943668,0.4496207,114140.0,114130.0,2.90799125]
[1754435943868,0.86000045,114140.0,114130.0,2.90799125]
[1754435944572,0.86000045,114140.0,114130.0,2.4976115]
[1754435944870,0.86000045,114140.0,114130.0,2.90799125]
[1754435945063,0.4496207,114140.0,114130.0,2.90799125]
[1754435945465,0.86000045,114140.0,114130.0,2.90799125]
[1754435946368,0.4496207,114140.0,114130.0,2.90799125]
[1754435946567,0.86000045,114140.0,114130.0,2.90799125]
[1754435950077,0.86000045,114140.0,114130.0,2.70392565]
[1754435951063,0.4496207,114140.0,114130.0,2.70392565]
[1754435951271,0.86000045,114140.0,114130.0,2.70392565]
[1754435952278,0.86000045,114140.0,114130.0,2.8984659]
[1754435952470,0.86000045,114140.0,114130.0,3.30884565]
[1754435954277,0.4496207,114140.0,114130.0,3.30884565]
[1754435954479,0.86000045,114140.0,114130.0,3.30884565]
[1754435955074,0.4496207,114140.0,114130.0,3.51291125]
[1754435955266,0.86000045,114140.0,114130.0,3.51291125]
[1754435956682,0.86000045,114140.0,114130.0,3.15211125]
[1754435957875,0.86000045,114140.0,114130.0,3.51291125]
[1754435958079,0.86000045,114140.0,114130.0,3.15211125]
[1754435960882,0.86000045,114140.0,114130.0,3.30884565]
[1754435961381,0.86000045,114140.0,114130.0,3.30984565]
[1754435962882,0.86000045,114140.0,114130.0,3.51504365]
[1754435963580,0.86000045,114140.0,114130.0,3.33979775]
[1754435963778,0.2411707,114140.0,114130.0,3.51504375]
[1754435963978,0.65155045,114140.0,114130.0,3.51504375]
[1754435964988,0.2411707,114140.0,114130.0,3.51504375]
[1754435965381,0.2411707,114140.0,114130.0,3.25214375]
[1754435967179,0.1752307,114140.0,114130.0,2.94722375]
[1754435967378,0.85077985,114160.0,114150.0,0.06942205]
[1754435967579,0.85077985,114160.0,114140.0,0.255608]
[1754435967580,0.4465353,114150.0,114140.0,0.255608]
[1754435967788,0.85691505,114150.0,114140.0,0.859448]
[1754435967982,0.85691505,114150.0,114140.0,0.959448]
[1754435968182,0.85691505,114150.0,114140.0,1.36998775]